[Event "Titled Tuesday Blitz March 07 Late 2023"]
[White "Almeida Quintana, Omar"]
[Black "Marczuk, Dominik"]
[WhiteFideId "3503313"]
[BlackFideId "1111264"]
[WhiteElo "2530"]
[BlackElo "2174"]
[Result "0-1"]
[Round "05"]
[TimeControl "180+2"]
[Date "2023.03.07"]
[WhiteClock "0:00:12"]
[BlackClock "0:00:05"]

1. d4 {[%clk 0:03:00]}  Nf6 {[%clk 0:02:46]} 2. c4 {[%clk 0:03:00]}  g6 {[%clk 0:02:44]} 3. Nc3 {[%clk 0:02:59]}  Bg7 {[%clk 0:02:45]} 4. e4 {[%clk 0:02:59]}  d6 {[%clk 0:02:46]} 5. h3 {[%clk 0:02:59]}  O-O {[%clk 0:02:45]} 6. Be3 {[%clk 0:02:58]}  e5 {[%clk 0:02:43]} 7. d5 {[%clk 0:02:58]}  Nbd7 {[%clk 0:02:42]} 8. g4 {[%clk 0:02:56]}  Nc5 {[%clk 0:02:42]} 9. Qc2 {[%clk 0:02:54]}  a5 {[%clk 0:02:43]} 10. Nge2 {[%clk 0:02:52]}  c6 {[%clk 0:02:43]} 11. Ng3 {[%clk 0:02:33]}  cxd5 {[%clk 0:02:43]} 12. exd5 {[%clk 0:02:33]}  Ne8 {[%clk 0:02:32]} 13. g5 {[%clk 0:02:30]}  f5 {[%clk 0:02:18]} 14. gxf6 {[%clk 0:02:27]}  Nxf6 {[%clk 0:02:16]} 15. O-O-O {[%clk 0:02:26]}  a4 {[%clk 0:02:12]} 16. Kb1 {[%clk 0:02:24]}  Kh8 {[%clk 0:01:58]} 17. Be2 {[%clk 0:02:09]}  b6 {[%clk 0:01:40]} 18. f3 {[%clk 0:01:45]}  Qe7 {[%clk 0:01:08]} 19. h4 {[%clk 0:01:45]}  Nh5 {[%clk 0:00:59]} 20. Nxh5 {[%clk 0:01:35]}  gxh5 {[%clk 0:01:00]} 21. Ne4 {[%clk 0:01:25]}  Bf5 {[%clk 0:01:00]} 22. Rdg1 {[%clk 0:01:23]}  Bg6 {[%clk 0:00:54]} 23. Rxg6 {[%clk 0:01:15]}  hxg6 {[%clk 0:00:54]} 24. Nxc5 {[%clk 0:01:13]}  bxc5 {[%clk 0:00:52]} 25. Qxg6 {[%clk 0:01:13]}  Qf7 {[%clk 0:00:32]} 26. Qxd6 {[%clk 0:01:00]}  Qf5+ {[%clk 0:00:32]} 27. Kc1 {[%clk 0:00:58]}  a3 {[%clk 0:00:32]} 28. b3 {[%clk 0:00:50]}  e4 {[%clk 0:00:32]} 29. f4 {[%clk 0:00:50]}  Rad8 {[%clk 0:00:24]} 30. Qxc5 {[%clk 0:00:41]}  Qf6 {[%clk 0:00:24]} 31. Kd2 {[%clk 0:00:19]}  Qc3+ {[%clk 0:00:20]} 32. Kd1 {[%clk 0:00:19]}  Qa1+ {[%clk 0:00:16]} 33. Bc1 {[%clk 0:00:18]}  Qxa2 {[%clk 0:00:17]} 34. Qb6 {[%clk 0:00:16]}  Rb8 {[%clk 0:00:15]} 35. Qg6 {[%clk 0:00:15]}  Qxb3+ {[%clk 0:00:15]} 36. Ke1 {[%clk 0:00:15]}  Qc3+ {[%clk 0:00:12]} 37. Bd2 {[%clk 0:00:14]}  Rb1+ {[%clk 0:00:12]} 38. Bd1 {[%clk 0:00:14]}  Rxd1+ {[%clk 0:00:08]} 39. Kxd1 {[%clk 0:00:14]}  Qf3+ {[%clk 0:00:09]} 40. Kc2 {[%clk 0:00:14]}  Qxh1 {[%clk 0:00:09]} 41. Qxh5+ {[%clk 0:00:13]}  Kg8 {[%clk 0:00:09]} 42. d6 {[%clk 0:00:14]}  a2 {[%clk 0:00:08]} 43. Qd5+ {[%clk 0:00:14]}  Kh7 {[%clk 0:00:07]} 44. Qh5+ {[%clk 0:00:13]}  Bh6 {[%clk 0:00:07]} 45. Bc3 {[%clk 0:00:13]}  Qg2+ {[%clk 0:00:06]} 46. Kb3 {[%clk 0:00:13]}  Rb8+ {[%clk 0:00:05]} 47. Ka4 {[%clk 0:00:13]}  Qc2+ {[%clk 0:00:04]} 48. Ka5 {[%clk 0:00:12]}  Qxc3+ {[%clk 0:00:05]} 0-1


[Site "https://www.chess.com"]

[Event "Titled Tuesday Blitz March 07 Late 2023"]
[White "Karttunen, Mika"]
[Black "Chan, Kim Yew"]
[WhiteFideId "502081"]
[BlackFideId "5717981"]
[WhiteElo "2396"]
[BlackElo "2206"]
[Result "1/2-1/2"]
[Round "05"]
[TimeControl "180+2"]
[Date "2023.03.07"]
[WhiteClock "0:00:11"]
[BlackClock "0:00:08"]

1. d4 {[%clk 0:03:00]}  Nf6 {[%clk 0:02:59]} 2. c4 {[%clk 0:03:00]}  e6 {[%clk 0:02:59]} 3. Nf3 {[%clk 0:02:57]}  b6 {[%clk 0:02:58]} 4. g3 {[%clk 0:02:56]}  Bb7 {[%clk 0:02:58]} 5. Bg2 {[%clk 0:02:56]}  Bb4+ {[%clk 0:02:58]} 6. Bd2 {[%clk 0:02:54]}  a5 {[%clk 0:02:58]} 7. O-O {[%clk 0:02:54]}  O-O {[%clk 0:02:57]} 8. Nc3 {[%clk 0:02:49]}  Ne4 {[%clk 0:02:54]} 9. Nxe4 {[%clk 0:02:28]}  Bxe4 {[%clk 0:02:55]} 10. Bf4 {[%clk 0:02:26]}  Be7 {[%clk 0:02:53]} 11. d5 {[%clk 0:01:58]}  d6 {[%clk 0:02:40]} 12. dxe6 {[%clk 0:01:30]}  fxe6 {[%clk 0:02:41]} 13. Nd4 {[%clk 0:01:27]}  Bxg2 {[%clk 0:02:27]} 14. Kxg2 {[%clk 0:01:26]}  Qc8 {[%clk 0:02:15]} 15. Bd2 {[%clk 0:01:04]}  Bf6 {[%clk 0:01:36]} 16. Bc3 {[%clk 0:00:58]}  Qb7+ {[%clk 0:01:12]} 17. f3 {[%clk 0:00:57]}  Bxd4 {[%clk 0:01:09]} 18. Qxd4 {[%clk 0:00:58]}  e5 {[%clk 0:01:10]} 19. Qg4 {[%clk 0:00:45]}  Qc8 {[%clk 0:01:00]} 20. Qe4 {[%clk 0:00:43]}  Nd7 {[%clk 0:01:00]} 21. b3 {[%clk 0:00:32]}  Nc5 {[%clk 0:00:58]} 22. Qd5+ {[%clk 0:00:31]}  Kh8 {[%clk 0:00:58]} 23. f4 {[%clk 0:00:31]}  exf4 {[%clk 0:00:44]} 24. Rxf4 {[%clk 0:00:12]}  Rxf4 {[%clk 0:00:43]} 25. gxf4 {[%clk 0:00:12]}  Qg4+ {[%clk 0:00:44]} 26. Kh1 {[%clk 0:00:12]}  Rg8 {[%clk 0:00:22]} 27. e3 {[%clk 0:00:11]}  Qe2 {[%clk 0:00:16]} 28. Bd4 {[%clk 0:00:10]}  Qc2 {[%clk 0:00:06]} 29. Rg1 {[%clk 0:00:10]}  Qe4+ {[%clk 0:00:05]} 30. Qxe4 {[%clk 0:00:10]}  Nxe4 {[%clk 0:00:06]} 31. Rg2 {[%clk 0:00:10]}  h6 {[%clk 0:00:05]} 32. h4 {[%clk 0:00:09]}  Kh7 {[%clk 0:00:05]} 33. h5 {[%clk 0:00:09]}  g6 {[%clk 0:00:05]} 34. hxg6+ {[%clk 0:00:09]}  Rxg6 {[%clk 0:00:06]} 35. Kh2 {[%clk 0:00:09]}  Rxg2+ {[%clk 0:00:06]} 36. Kxg2 {[%clk 0:00:10]}  Kg6 {[%clk 0:00:07]} 37. Kf3 {[%clk 0:00:11]}  Kf5 {[%clk 0:00:07]} 38. Bg7 {[%clk 0:00:11]}  h5 {[%clk 0:00:08]} 39. Bd4 {[%clk 0:00:10]}  Nd2+ {[%clk 0:00:07]} 40. Ke2 {[%clk 0:00:10]}  Ne4 {[%clk 0:00:07]} 41. Kf3 {[%clk 0:00:10]}  Nd2+ {[%clk 0:00:08]} 42. Ke2 {[%clk 0:00:11]}  Ne4 {[%clk 0:00:08]} 43. Kf3 {[%clk 0:00:11]} 1/2-1/2


[Site "https://www.chess.com"]

[Event "Titled Tuesday Blitz March 07 Late 2023"]
[White "Vaglio Munoz, Jaime"]
[Black "Jimenez Almeida, Luis David"]
[WhiteFideId "6500145"]
[BlackFideId "22242244"]
[WhiteElo "2199"]
[BlackElo "2245"]
[Result "1-0"]
[Round "05"]
[TimeControl "180+2"]
[Date "2023.03.07"]
[WhiteClock "0:00:05"]
[BlackClock "0:00:03"]

1. Nf3 {[%clk 0:03:00]}  g6 {[%clk 0:02:59]} 2. e4 {[%clk 0:03:00]}  Bg7 {[%clk 0:02:59]} 3. d4 {[%clk 0:03:00]}  c6 {[%clk 0:02:59]} 4. c4 {[%clk 0:02:45]}  Na6 {[%clk 0:02:58]} 5. Nc3 {[%clk 0:02:44]}  d6 {[%clk 0:02:58]} 6. h3 {[%clk 0:02:39]}  Nf6 {[%clk 0:02:58]} 7. g4 {[%clk 0:02:36]}  Nc7 {[%clk 0:02:56]} 8. Be3 {[%clk 0:02:35]}  h5 {[%clk 0:02:53]} 9. g5 {[%clk 0:02:33]}  Nd7 {[%clk 0:02:53]} 10. Qc2 {[%clk 0:02:24]}  e5 {[%clk 0:02:51]} 11. O-O-O {[%clk 0:02:23]}  Qe7 {[%clk 0:02:50]} 12. Kb1 {[%clk 0:02:10]}  a5 {[%clk 0:02:49]} 13. d5 {[%clk 0:02:10]}  c5 {[%clk 0:02:47]} 14. Qa4 {[%clk 0:02:05]}  O-O {[%clk 0:02:44]} 15. Nd2 {[%clk 0:02:02]}  Nb6 {[%clk 0:02:43]} 16. Qb3 {[%clk 0:01:58]}  Ra6 {[%clk 0:02:42]} 17. a4 {[%clk 0:01:58]}  Bd7 {[%clk 0:02:38]} 18. Be2 {[%clk 0:01:41]}  Qe8 {[%clk 0:02:35]} 19. Nb5 {[%clk 0:01:38]}  Nxb5 {[%clk 0:02:34]} 20. cxb5 {[%clk 0:01:38]}  Ra8 {[%clk 0:02:34]} 21. h4 {[%clk 0:01:31]}  Rc8 {[%clk 0:02:19]} 22. Bc4 {[%clk 0:01:27]}  Kh7 {[%clk 0:02:08]} 23. Rdg1 {[%clk 0:01:25]}  f5 {[%clk 0:02:01]} 24. gxf6 {[%clk 0:01:22]}  Bxf6 {[%clk 0:02:02]} 25. Nf3 {[%clk 0:01:18]}  Bg4 {[%clk 0:01:59]} 26. Rxg4 {[%clk 0:00:42]}  hxg4 {[%clk 0:01:58]} 27. Nh2 {[%clk 0:00:43]}  Bxh4 {[%clk 0:01:24]} 28. Nxg4 {[%clk 0:00:40]}  Qe7 {[%clk 0:01:24]} 29. Be2 {[%clk 0:00:33]}  g5 {[%clk 0:01:02]} 30. Nh2 {[%clk 0:00:22]}  Kg7 {[%clk 0:00:55]} 31. Bg4 {[%clk 0:00:22]}  Rc7 {[%clk 0:00:41]} 32. Nf3 {[%clk 0:00:22]}  Nd7 {[%clk 0:00:26]} 33. Bf5 {[%clk 0:00:13]}  Rxf5 {[%clk 0:00:19]} 34. exf5 {[%clk 0:00:13]}  e4 {[%clk 0:00:19]} 35. Qc3+ {[%clk 0:00:12]}  Ne5 {[%clk 0:00:15]} 36. Nd2 {[%clk 0:00:10]}  Qf6 {[%clk 0:00:13]} 37. Nxe4 {[%clk 0:00:09]}  Qxf5 {[%clk 0:00:13]} 38. Qc2 {[%clk 0:00:09]}  Qf3 {[%clk 0:00:10]} 39. Rg1 {[%clk 0:00:09]}  Rf7 {[%clk 0:00:05]} 40. Nxd6 {[%clk 0:00:09]}  Rf6 {[%clk 0:00:03]} 41. Ne4 {[%clk 0:00:08]}  Rg6 {[%clk 0:00:03]} 42. Ng3 {[%clk 0:00:07]}  Bxg3 {[%clk 0:00:02]} 43. Rxg3 {[%clk 0:00:08]}  Qf6 {[%clk 0:00:02]} 44. Qc3 {[%clk 0:00:06]}  g4 {[%clk 0:00:02]} 45. Ka2 {[%clk 0:00:06]}  Qf5 {[%clk 0:00:03]} 46. Bxc5 {[%clk 0:00:06]}  Kf7 {[%clk 0:00:03]} 47. Bd4 {[%clk 0:00:05]}  Nd7 {[%clk 0:00:02]} 48. Qc4 {[%clk 0:00:05]}  Qe4 {[%clk 0:00:03]} 49. Rc3 {[%clk 0:00:04]}  Rd6 {[%clk 0:00:03]} 50. Be3 {[%clk 0:00:03]}  Qxd5 {[%clk 0:00:04]} 51. Qxd5+ {[%clk 0:00:03]}  Rxd5 {[%clk 0:00:05]} 52. Rc4 {[%clk 0:00:03]}  Ke6 {[%clk 0:00:05]} 53. Rxg4 {[%clk 0:00:03]}  Ne5 {[%clk 0:00:06]} 54. Rg7 {[%clk 0:00:03]}  Rd3 {[%clk 0:00:06]} 55. Rxb7 {[%clk 0:00:04]}  Kd5 {[%clk 0:00:06]} 56. Rb6 {[%clk 0:00:04]}  Nc4 {[%clk 0:00:07]} 57. Rc6 {[%clk 0:00:04]}  Ne5 {[%clk 0:00:04]} 58. Rc5+ {[%clk 0:00:05]}  Ke4 {[%clk 0:00:05]} 59. b6 {[%clk 0:00:05]}  Rd7 {[%clk 0:00:04]} 60. Rc7 {[%clk 0:00:05]}  Rd8 {[%clk 0:00:04]} 61. b7 {[%clk 0:00:05]}  Ra8 {[%clk 0:00:03]} 62. bxa8=Q+ {[%clk 0:00:05]} 1-0


[Site "https://www.chess.com"]

[Event "Titled Tuesday Blitz March 07 Late 2023"]
[White "Nunez V, Gustavo Eduardo"]
[Black "Krallis, Christos"]
[WhiteFideId "4403690"]
[BlackFideId "4298896"]
[WhiteElo "2228"]
[BlackElo "2243"]
[Result "0-1"]
[Round "05"]
[TimeControl "180+2"]
[Date "2023.03.07"]
[WhiteClock "0:00:17"]
[BlackClock "0:00:09"]

1. e4 {[%clk 0:02:16]}  c5 {[%clk 0:01:15]} 2. Nc3 {[%clk 0:02:15]}  d6 {[%clk 0:01:13]} 3. f4 {[%clk 0:02:16]}  Nc6 {[%clk 0:01:09]} 4. Nf3 {[%clk 0:02:16]}  g6 {[%clk 0:01:07]} 5. Bb5 {[%clk 0:02:15]}  Bg7 {[%clk 0:01:07]} 6. a4 {[%clk 0:02:16]}  Nf6 {[%clk 0:01:04]} 7. d3 {[%clk 0:02:15]}  O-O {[%clk 0:01:05]} 8. O-O {[%clk 0:02:16]}  Bg4 {[%clk 0:01:03]} 9. h3 {[%clk 0:02:16]}  Bxf3 {[%clk 0:01:02]} 10. Qxf3 {[%clk 0:02:15]}  Nd4 {[%clk 0:01:03]} 11. Qf2 {[%clk 0:02:15]}  a6 {[%clk 0:00:56]} 12. Bc4 {[%clk 0:02:13]}  Rb8 {[%clk 0:00:56]} 13. a5 {[%clk 0:02:13]}  Nd7 {[%clk 0:00:50]} 14. Be3 {[%clk 0:01:47]}  Nc6 {[%clk 0:00:49]} 15. f5 {[%clk 0:01:38]}  Nde5 {[%clk 0:00:49]} 16. fxg6 {[%clk 0:01:35]}  hxg6 {[%clk 0:00:46]} 17. Nd5 {[%clk 0:01:34]}  e6 {[%clk 0:00:41]} 18. Nf6+ {[%clk 0:01:24]}  Bxf6 {[%clk 0:00:41]} 19. Qxf6 {[%clk 0:01:25]}  Qxf6 {[%clk 0:00:41]} 20. Rxf6 {[%clk 0:01:26]}  Nxc4 {[%clk 0:00:42]} 21. dxc4 {[%clk 0:01:27]}  Ne5 {[%clk 0:00:42]} 22. b3 {[%clk 0:01:25]}  Nd7 {[%clk 0:00:40]} 23. Rf2 {[%clk 0:01:23]}  Rbd8 {[%clk 0:00:32]} 24. Rb1 {[%clk 0:01:23]}  Ne5 {[%clk 0:00:31]} 25. Rbf1 {[%clk 0:01:23]}  f5 {[%clk 0:00:29]} 26. Bh6 {[%clk 0:01:21]}  Rf7 {[%clk 0:00:29]} 27. exf5 {[%clk 0:01:18]}  gxf5 {[%clk 0:00:28]} 28. g3 {[%clk 0:01:19]}  Rh7 {[%clk 0:00:27]} 29. Bg5 {[%clk 0:01:18]}  Rdd7 {[%clk 0:00:28]} 30. h4 {[%clk 0:01:17]}  Nf7 {[%clk 0:00:26]} 31. Bf6 {[%clk 0:01:14]}  Rh6 {[%clk 0:00:26]} 32. Bc3 {[%clk 0:01:14]}  Rg6 {[%clk 0:00:26]} 33. Kh2 {[%clk 0:01:14]}  Nh6 {[%clk 0:00:25]} 34. Re2 {[%clk 0:01:13]}  Ng4+ {[%clk 0:00:25]} 35. Kh3 {[%clk 0:01:14]}  Rf7 {[%clk 0:00:25]} 36. Rfe1 {[%clk 0:01:03]}  e5 {[%clk 0:00:25]} 37. Rf1 {[%clk 0:01:03]}  Nh6 {[%clk 0:00:26]} 38. Ref2 {[%clk 0:01:00]}  Rfg7 {[%clk 0:00:25]} 39. Rf3 {[%clk 0:00:58]}  Kf7 {[%clk 0:00:23]} 40. Bd2 {[%clk 0:00:58]}  f4 {[%clk 0:00:15]} 41. gxf4 {[%clk 0:00:52]}  Ke8 {[%clk 0:00:07]} 42. fxe5 {[%clk 0:00:51]}  dxe5 {[%clk 0:00:07]} 43. Bxh6 {[%clk 0:00:48]}  Rxh6 {[%clk 0:00:08]} 44. Rf5 {[%clk 0:00:44]}  Re7 {[%clk 0:00:06]} 45. Re1 {[%clk 0:00:43]}  Rhe6 {[%clk 0:00:06]} 46. Re4 {[%clk 0:00:43]}  Kd7 {[%clk 0:00:06]} 47. h5 {[%clk 0:00:42]}  Kd6 {[%clk 0:00:07]} 48. Rg5 {[%clk 0:00:41]}  Rf7 {[%clk 0:00:05]} 49. Kg4 {[%clk 0:00:39]}  Rf1 {[%clk 0:00:05]} 50. Rg6 {[%clk 0:00:39]}  Rg1+ {[%clk 0:00:05]} 51. Kf5 {[%clk 0:00:40]}  Rf1+ {[%clk 0:00:05]} 52. Kg5 {[%clk 0:00:40]}  Rg1+ {[%clk 0:00:05]} 53. Kh6 {[%clk 0:00:40]}  Ke7 {[%clk 0:00:05]} 54. Re2 {[%clk 0:00:24]}  Kf7 {[%clk 0:00:05]} 55. Rf2+ {[%clk 0:00:23]}  Ke7 {[%clk 0:00:06]} 56. Kh7 {[%clk 0:00:22]}  e4 {[%clk 0:00:06]} 57. Re2 {[%clk 0:00:19]}  Rh1 {[%clk 0:00:04]} 58. Rxe6+ {[%clk 0:00:18]}  Kxe6 {[%clk 0:00:04]} 59. Rxe4+ {[%clk 0:00:18]}  Kf5 {[%clk 0:00:04]} 60. Re7 {[%clk 0:00:19]}  Rxh5+ {[%clk 0:00:05]} 61. Kg7 {[%clk 0:00:19]}  Rh2 {[%clk 0:00:06]} 62. Rxb7 {[%clk 0:00:17]}  Rxc2 {[%clk 0:00:06]} 63. Kf7 {[%clk 0:00:17]}  Ke5 {[%clk 0:00:06]} 64. Ke7 {[%clk 0:00:18]}  Kd4 {[%clk 0:00:06]} 65. Kd6 {[%clk 0:00:18]}  Ra2 {[%clk 0:00:07]} 66. Rh7 {[%clk 0:00:14]}  Rxa5 {[%clk 0:00:07]} 67. Rh4+ {[%clk 0:00:14]}  Kc3 {[%clk 0:00:07]} 68. Rh3+ {[%clk 0:00:14]}  Kb4 {[%clk 0:00:08]} 69. Kc6 {[%clk 0:00:14]}  Ra3 {[%clk 0:00:07]} 70. Rh5 {[%clk 0:00:14]}  Rxb3 {[%clk 0:00:06]} 71. Rxc5 {[%clk 0:00:14]}  a5 {[%clk 0:00:06]} 72. Kb6 {[%clk 0:00:13]}  a4 {[%clk 0:00:05]} 73. Rb5+ {[%clk 0:00:13]}  Kxc4 {[%clk 0:00:05]} 74. Rxb3 {[%clk 0:00:11]}  axb3 {[%clk 0:00:05]} 75. Kc7 {[%clk 0:00:11]}  b2 {[%clk 0:00:06]} 76. Kd6 {[%clk 0:00:12]}  b1=Q {[%clk 0:00:07]} 77. Ke6 {[%clk 0:00:13]}  Qc2 {[%clk 0:00:07]} 78. Kf6 {[%clk 0:00:14]}  Kd4 {[%clk 0:00:08]} 79. Kg7 {[%clk 0:00:15]}  Ke5 {[%clk 0:00:09]} 80. Kh8 {[%clk 0:00:16]}  Kf6 {[%clk 0:00:09]} 81. Kg8 {[%clk 0:00:16]}  Qg2+ {[%clk 0:00:09]} 82. Kh8 {[%clk 0:00:17]}  Qg7# {[%clk 0:00:09]} 0-1


[Site "https://www.chess.com"]

[Event "Titled Tuesday Blitz March 07 Late 2023"]
[White "Bogaudinov, Rushan"]
[Black "Martinez Reyes, Pedro Ramon"]
[WhiteFideId "4129288"]
[BlackFideId "3901807"]
[WhiteElo "1949"]
[BlackElo "2340"]
[Result "0-1"]
[Round "05"]
[TimeControl "180+2"]
[Date "2023.03.07"]
[WhiteClock "0:00:04"]
[BlackClock "0:00:33"]

1. e4 {[%clk 0:02:55]}  c6 {[%clk 0:02:59]} 2. d4 {[%clk 0:02:55]}  g6 {[%clk 0:02:58]} 3. h4 {[%clk 0:02:52]}  Bg7 {[%clk 0:02:51]} 4. h5 {[%clk 0:02:52]}  Nf6 {[%clk 0:02:42]} 5. h6 {[%clk 0:02:51]}  Bf8 {[%clk 0:02:42]} 6. e5 {[%clk 0:02:44]}  Nd5 {[%clk 0:02:42]} 7. c4 {[%clk 0:02:44]}  Nc7 {[%clk 0:02:41]} 8. Nc3 {[%clk 0:02:36]}  d6 {[%clk 0:02:35]} 9. f4 {[%clk 0:02:27]}  Nba6 {[%clk 0:02:30]} 10. Nf3 {[%clk 0:02:24]}  Bg4 {[%clk 0:02:29]} 11. Be2 {[%clk 0:02:23]}  e6 {[%clk 0:02:21]} 12. Ne4 {[%clk 0:02:11]}  Be7 {[%clk 0:02:14]} 13. exd6 {[%clk 0:01:35]}  Bxd6 {[%clk 0:02:13]} 14. Be3 {[%clk 0:01:20]}  Bb4+ {[%clk 0:02:09]} 15. Kf2 {[%clk 0:01:20]}  Be7 {[%clk 0:02:06]} 16. Qb3 {[%clk 0:01:14]}  Rb8 {[%clk 0:02:04]} 17. Rad1 {[%clk 0:01:13]}  b5 {[%clk 0:01:58]} 18. cxb5 {[%clk 0:00:56]}  cxb5 {[%clk 0:01:59]} 19. Ne5 {[%clk 0:00:46]}  Bxe2 {[%clk 0:01:54]} 20. Kxe2 {[%clk 0:00:47]}  Nb4 {[%clk 0:01:42]} 21. a3 {[%clk 0:00:41]}  Qd5 {[%clk 0:01:42]} 22. Qxd5 {[%clk 0:00:35]}  Nbxd5 {[%clk 0:01:43]} 23. Nc6 {[%clk 0:00:32]}  Rb6 {[%clk 0:01:39]} 24. Rc1 {[%clk 0:00:28]}  f6 {[%clk 0:01:34]} 25. g4 {[%clk 0:00:20]}  Kd7 {[%clk 0:01:31]} 26. Na5 {[%clk 0:00:18]}  Ra6 {[%clk 0:01:22]} 27. Nb3 {[%clk 0:00:18]}  Rc6 {[%clk 0:01:14]} 28. Nbc5+ {[%clk 0:00:18]}  Bxc5 {[%clk 0:01:14]} 29. Nxc5+ {[%clk 0:00:17]}  Ke7 {[%clk 0:01:14]} 30. b4 {[%clk 0:00:16]}  Rc8 {[%clk 0:01:10]} 31. Bd2 {[%clk 0:00:16]}  Ne8 {[%clk 0:01:08]} 32. g5 {[%clk 0:00:16]}  f5 {[%clk 0:01:08]} 33. Nd3 {[%clk 0:00:15]}  Rxc1 {[%clk 0:01:00]} 34. Rxc1 {[%clk 0:00:15]}  Rxc1 {[%clk 0:01:00]} 35. Bxc1 {[%clk 0:00:16]}  Kf7 {[%clk 0:00:47]} 36. Ne5+ {[%clk 0:00:15]}  Kg8 {[%clk 0:00:47]} 37. Nc6 {[%clk 0:00:15]}  a6 {[%clk 0:00:45]} 38. Bd2 {[%clk 0:00:13]}  Nd6 {[%clk 0:00:42]} 39. Nd8 {[%clk 0:00:10]}  Nc7 {[%clk 0:00:39]} 40. Kd3 {[%clk 0:00:08]}  Kf8 {[%clk 0:00:36]} 41. Nc6 {[%clk 0:00:05]}  Nc4 {[%clk 0:00:35]} 42. Bc1 {[%clk 0:00:02]}  Nd5 {[%clk 0:00:35]} 43. Nb8 {[%clk 0:00:02]}  a5 {[%clk 0:00:35]} 44. bxa5 {[%clk 0:00:02]}  Nxa5 {[%clk 0:00:36]} 45. Nd7+ {[%clk 0:00:02]}  Kg8 {[%clk 0:00:34]} 46. Nf6+ {[%clk 0:00:02]}  Kh8 {[%clk 0:00:34]} 47. Ne8 {[%clk 0:00:02]}  Kg8 {[%clk 0:00:33]} 48. Nf6+ {[%clk 0:00:02]}  Nxf6 {[%clk 0:00:33]} 49. gxf6 {[%clk 0:00:02]}  Kf7 {[%clk 0:00:34]} 50. Kc3 {[%clk 0:00:02]}  Nc6 {[%clk 0:00:33]} 51. Be3 {[%clk 0:00:01]}  Kxf6 {[%clk 0:00:33]} 52. Kb3 {[%clk 0:00:02]}  Ke7 {[%clk 0:00:33]} 53. a4 {[%clk 0:00:02]}  bxa4+ {[%clk 0:00:33]} 54. Kxa4 {[%clk 0:00:03]}  Kd6 {[%clk 0:00:34]} 55. Kb5 {[%clk 0:00:03]}  Ne7 {[%clk 0:00:34]} 56. Kc4 {[%clk 0:00:03]}  Nd5 {[%clk 0:00:34]} 57. Kd3 {[%clk 0:00:03]}  Nxe3 {[%clk 0:00:34]} 58. Kxe3 {[%clk 0:00:04]}  Kc6 {[%clk 0:00:32]} 59. Kd3 {[%clk 0:00:04]}  Kd5 {[%clk 0:00:32]} 60. Ke3 {[%clk 0:00:04]}  Kc4 {[%clk 0:00:33]} 61. Kd2 {[%clk 0:00:03]}  Kxd4 {[%clk 0:00:33]} 62. Ke2 {[%clk 0:00:04]}  Ke4 {[%clk 0:00:33]} 0-1


[Site "https://www.chess.com"]

[Event "Titled Tuesday Blitz March 07 Late 2023"]
[White "Klose, Eli"]
[Black "Kovacs, Klara"]
[WhiteFideId "16242955"]
[BlackFideId "733210"]
[WhiteElo "2544"]
[BlackElo "2179"]
[Result "0-1"]
[Round "05"]
[TimeControl "180+2"]
[Date "2023.03.07"]
[WhiteClock "0:00:05"]
[BlackClock "0:00:33"]

1. e4 {[%clk 0:03:00]}  e6 {[%clk 0:02:44]} 2. Nf3 {[%clk 0:02:59]}  d5 {[%clk 0:02:43]} 3. e5 {[%clk 0:02:59]}  c5 {[%clk 0:02:42]} 4. b4 {[%clk 0:02:59]}  cxb4 {[%clk 0:02:42]} 5. a3 {[%clk 0:03:00]}  bxa3 {[%clk 0:02:42]} 6. d4 {[%clk 0:03:00]}  Nc6 {[%clk 0:02:43]} 7. Bxa3 {[%clk 0:02:57]}  Bxa3 {[%clk 0:02:41]} 8. Nxa3 {[%clk 0:02:58]}  Nge7 {[%clk 0:02:40]} 9. Bd3 {[%clk 0:02:55]}  h6 {[%clk 0:02:35]} 10. c3 {[%clk 0:02:54]}  a5 {[%clk 0:02:34]} 11. O-O {[%clk 0:02:53]}  b6 {[%clk 0:02:34]} 12. Nb5 {[%clk 0:02:34]}  O-O {[%clk 0:02:32]} 13. Rb1 {[%clk 0:02:30]}  Ba6 {[%clk 0:02:32]} 14. Bc2 {[%clk 0:02:25]}  Na7 {[%clk 0:02:26]} 15. Bd3 {[%clk 0:01:27]}  Nxb5 {[%clk 0:02:24]} 16. Bxb5 {[%clk 0:01:28]}  Bxb5 {[%clk 0:02:25]} 17. Rxb5 {[%clk 0:01:28]}  Qc7 {[%clk 0:02:25]} 18. Qb3 {[%clk 0:01:26]}  Rfb8 {[%clk 0:02:24]} 19. Rb1 {[%clk 0:01:25]}  Ra6 {[%clk 0:02:24]} 20. h3 {[%clk 0:01:20]}  Nc8 {[%clk 0:02:22]} 21. Rc5 {[%clk 0:01:01]}  Qd7 {[%clk 0:01:57]} 22. Qa2 {[%clk 0:00:56]}  Na7 {[%clk 0:01:50]} 23. Qe2 {[%clk 0:00:54]}  Qb7 {[%clk 0:01:46]} 24. Ne1 {[%clk 0:00:21]}  a4 {[%clk 0:01:42]} 25. Rc7 {[%clk 0:00:15]}  Qxc7 {[%clk 0:01:40]} 26. Qxa6 {[%clk 0:00:15]}  b5 {[%clk 0:01:40]} 27. Nd3 {[%clk 0:00:14]}  Ra8 {[%clk 0:01:32]} 28. Nc5 {[%clk 0:00:11]}  Qc8 {[%clk 0:01:26]} 29. Qb6 {[%clk 0:00:03]}  Qb8 {[%clk 0:01:21]} 30. Qxb8+ {[%clk 0:00:03]}  Rxb8 {[%clk 0:01:21]} 31. Nxa4 {[%clk 0:00:04]}  Kf8 {[%clk 0:01:15]} 32. Nc5 {[%clk 0:00:04]}  Ke7 {[%clk 0:01:04]} 33. Kf1 {[%clk 0:00:05]}  Nc6 {[%clk 0:01:04]} 34. Ke2 {[%clk 0:00:05]}  b4 {[%clk 0:01:03]} 35. Kd3 {[%clk 0:00:04]}  Ra8 {[%clk 0:01:01]} 36. cxb4 {[%clk 0:00:03]}  Ra3+ {[%clk 0:01:01]} 37. Rb3 {[%clk 0:00:04]}  Nxb4+ {[%clk 0:01:00]} 38. Kc3 {[%clk 0:00:04]}  Rxb3+ {[%clk 0:00:56]} 39. Nxb3 {[%clk 0:00:05]}  Nc6 {[%clk 0:00:54]} 40. Nc1 {[%clk 0:00:05]}  f6 {[%clk 0:00:51]} 41. f4 {[%clk 0:00:04]}  fxe5 {[%clk 0:00:51]} 42. fxe5 {[%clk 0:00:05]}  Kf7 {[%clk 0:00:50]} 43. Kd3 {[%clk 0:00:05]}  Kg6 {[%clk 0:00:50]} 44. Ke3 {[%clk 0:00:05]}  h5 {[%clk 0:00:50]} 45. Ne2 {[%clk 0:00:05]}  Kf5 {[%clk 0:00:49]} 46. Kf3 {[%clk 0:00:05]}  h4 {[%clk 0:00:47]} 47. g4+ {[%clk 0:00:03]}  hxg3 {[%clk 0:00:46]} 48. Nxg3+ {[%clk 0:00:03]}  Kg5 {[%clk 0:00:47]} 49. Ne2 {[%clk 0:00:04]}  Kh4 {[%clk 0:00:44]} 50. Ke3 {[%clk 0:00:04]}  g5 {[%clk 0:00:42]} 51. Ng1 {[%clk 0:00:05]}  Kg3 {[%clk 0:00:42]} 52. Nf3 {[%clk 0:00:05]}  g4 {[%clk 0:00:38]} 53. hxg4 {[%clk 0:00:04]}  Kxg4 {[%clk 0:00:39]} 54. Nd2 {[%clk 0:00:04]}  Ne7 {[%clk 0:00:37]} 55. Nb3 {[%clk 0:00:04]}  Nf5+ {[%clk 0:00:37]} 56. Kd3 {[%clk 0:00:04]}  Kf4 {[%clk 0:00:38]} 57. Nc5 {[%clk 0:00:05]}  Ng7 {[%clk 0:00:37]} 58. Kc3 {[%clk 0:00:05]}  Ke3 {[%clk 0:00:37]} 59. Nb3 {[%clk 0:00:02]}  Nf5 {[%clk 0:00:37]} 60. Nc5 {[%clk 0:00:03]}  Nxd4 {[%clk 0:00:37]} 61. Nd7 {[%clk 0:00:03]}  Ne2+ {[%clk 0:00:34]} 62. Kc2 {[%clk 0:00:03]}  d4 {[%clk 0:00:35]} 63. Nc5 {[%clk 0:00:04]}  Nf4 {[%clk 0:00:34]} 64. Kb3 {[%clk 0:00:04]}  d3 {[%clk 0:00:33]} 65. Kc3 {[%clk 0:00:04]}  d2 {[%clk 0:00:33]} 66. Kc2 {[%clk 0:00:05]}  Ke2 {[%clk 0:00:33]} 0-1


[Site "https://www.chess.com"]